Cogmind - Beta 16 @@@ ROGUE MODE // 2025.10.25 @ 21:01:25 Player: ChromeKnight Result: Destroyed by 6Z-0V1(R) with Subdweller Shrapnel Launcher Performance ------------- Evolutions (0) 0 Regions Visited (2) 400 Robots Destroyed (22) 110 Value Destroyed (470) 470 Prototype IDs (0) 0 Alien Tech Used (0) 0 Bonus (0) 0 TOTAL SCORE: 980 Bonus ------- None Cogmind --------- Core Integrity 0/250 Matter 285/300 Energy 97/125 System Corruption 0% Temperature Cool (0) Movement Treading (240) Ox1 Location -10/Subcaves Parts ------- > --- POWER (1) -------- Light Ion Engine > --- PROPULSION (2) --- Light Treads Light Treads > --- UTILITY (2) ------ High-capacity Storage Unit Core Shielding > --- WEAPON (2) ------- Subdweller Laser > --- INVENTORY (20) --- Subdweller Power Source Light Treads Light Treads Subdweller Monowheel Subdweller Monowheel Improved Heat Sink Disposable Heat Sink Large Storage Unit Weight Redist. System Visual Processing Unit Subdweller Optics Makeshift Light Armor Plating Hacking Suite Light Assault Rifle Light Assault Rifle Peak State ------------ > --- POWER ------------ Light Ion Engine > --- PROPULSION ------- Light Treads Light Treads > --- UTILITY ---------- High-capacity Storage Unit Core Shielding > --- WEAPON ----------- Light Assault Rifle Light Assault Rifle > --- INVENTORY -------- Subdweller Power Source Light Treads Light Treads Subdweller Monowheel Subdweller Monowheel Improved Heat Sink Disposable Heat Sink Large Storage Unit Weight Redist. System Visual Processing Unit Subdweller Optics Hacking Suite Subdweller Laser Subdweller Laser Light Assault Rifle Light Assault Rifle Light Assault Rifle [Rating: 10] Favorites ----------- Power Light Ion Engine Engine Light Ion Engine Propulsion Light Treads Treads Light Treads Wheel Compact Wheel Utility Core Shielding Storage High-capacity Storage Unit Protection Core Shielding Weapon Light Assault Rifle Energy Gun Small Laser Ballistic Gun Light Assault Rifle Build | -11 -10 -10 ------- Run | Yrd Mat Sub Slots Evolved . | . . . Power . | . . . Propulsion . | . . . Utility . | . . . Weapon . | . . . Parts Attached 17 | 6 7 4 Power 1 | . 1 . Engine 1 | . 1 . Core . | . . . Reactor . | . . . Propulsion 5 | 3 . 2 Treads 4 | 2 . 2 Leg . | . . . Wheel 1 | 1 . . Hover . | . . . Flight . | . . . Utility 4 | 1 3 . Device . | . . . Storage 3 | 1 2 . Processor . | . . . Hackware . | . . . Protection 1 | . 1 . Artifact . | . . . Weapon 7 | 2 3 2 Energy Gun 3 | 1 . 2 Energy Cannon . | . . . Ballistic Gun 4 | 1 3 . Ballistic Cannon . | . . . Launcher . | . . . Special Weapon . | . . . Impact Weapon . | . . . Slashing Weapon . | . . . Piercing Weapon . | . . . Special Melee Weapon . | . . . Unidentified Prototypes . | . . . Parts Lost 6 | . . 6 Power . | . . . Propulsion 2 | . . 2 Utility . | . . . Weapon 4 | . . 4 Highest Loss Streak 3 | . . 3 To Critical Strikes . | . . . Average Backups 8 | . 6 14 Power . | . . . Propulsion 2 | . 2 3 Utility 3 | . 2 6 Weapon 2 | . 2 3 Tool/Special . | . . . Unused Backups 14 | . 1 13 Power 1 | . . 1 Propulsion 4 | . . 4 Utility 7 | . 1 6 Weapon 2 | . . 2 Tool/Special . | . . . Average Slot Usage (%) 97 | . 95 99 Engine 13 | . 13 14 Treads 27 | . 28 27 Storage 14 | . 14 14 Protection 11 | . 10 14 Energy Gun 3 | . 3 2 Ballistic Gun 24 | . 24 25 Peak Build Rating 10 | 5 8 10 Average Rating 7 | 3 7 9 On Entrance 4 | . 5 8 Avg Prop Armor Cover (%) . | . . . Naked Turns . | . . . Heaviest Build 49 | 7 46 49 Greatest Support 40 | 40 40 40 Greatest Overweight (x) 1 | . 1 1 Average Overweight (x) . | . . 1 Largest Inventory Capacity 20 | 8 20 20 Average Capacity 17 | 6 17 20 Most Carried 17 | 1 12 17 Average Carried 9 | . 6 14 Final Capacity 20 | 8 20 20 Final Carried 15 | 1 12 15 Class Distribution -------------------- 100% | Mutant Dominant Class ---------------- Mutant | -10/Materials Mutant | -10/Subcaves Resources | -11 -10 -10 ----------- Run | Yrd Mat Sub Matter Collected 544 | 214 248 82 Remotely . | . . . Salvage Created 657 | . 524 133 Parts 47 | . 36 11 Haulers Intercepted 2 | . 2 . Recyclers Shooed . | . . . Parts Field Recycled . | . . . Retrieved Matter . | . . . Parts Self-Destructed 10 | . . 10 Prevented . | . . . Parts Restored . | . . . Kills | -11 -10 -10 ------- Run | Yrd Mat Sub Combat Hostiles Destroyed 15 | . 12 3 Guns 15 | . 12 3 Classes Destroyed 8 | . 7 1 Worker 1 | . 1 . Tunneler 1 | . 1 . Hauler 2 | . 2 . Operator 1 | . 1 . Watcher 2 | . 2 . Swarmer 6 | . 6 . Grunt 6 | . 6 . Subdweller 3 | . . 3 Best Kill Streak 7 | . 7 1 Combat Bots Only 6 | . 6 1 Max Kills in Single Turn 1 | . 1 1 Gunslinging . | . . . Exploded . | . . . Melee . | . . . Uniques/NPCs Destroyed . | . . . Combat | -11 -10 -10 -------- Run | Yrd Mat Sub Hostile Shots Fired 81 | . 48 33 Missed 19 | . 13 6 Hits 62 | . 35 27 Projectile 62 | . 35 27 AOE 3 | . . 3 Damage Taken 1072 | . 406 666 Core 253 | . 79 174 Absorbed by Shields . | . . . Redirected to Shielding 46 | . 8 38 Core Remaining (%) 100 | 100 . . Volleys Fired 86 | . 60 26 Largest 2 | . 2 2 Hottest 60 | . 60 60 Shots Fired 165 | . 120 45 Gun 165 | . 120 45 Cannon . | . . . Launcher . | . . . Special . | . . . Kinetic 140 | . 102 38 Thermal 25 | . 18 7 Explosive . | . . . Electromagnetic . | . . . Robot Hit Streak 25 | . 7 25 Robot Miss Streak 4 | . 4 3 Penetration Max . | . . . Secondary Targets 1 | . 1 . Max Gunslinging Chain 1 | . 1 . Shots Hit Robots 104 | . 72 32 Core Hits 47 | . 35 12 Critical Kills 1 | . . 1 Critical Parts Destroyed 2 | . 2 . Critical Strikes 4 | . 2 2 Destroy 4 | . 2 2 Melee Attacks . | . . . Impact . | . . . Slashing . | . . . Piercing . | . . . Sneak Attacks . | . . . Combat Hostiles . | . . . Follow-up Attacks . | . . . Damage Inflicted 877 | . 642 235 Guns 877 | . 642 235 Cannons . | . . . Explosions . | . . . Melee . | . . . Ramming . | . . . Kinetic 739 | . 504 235 Thermal 138 | . 138 . Explosive . | . . . Electromagnetic . | . . . Impact . | . . . Slashing . | . . . Piercing . | . . . Highest Corruption . | . . . Average Corruption . | . . . Corruption Purged . | . . . Corruption Blocked . | . . . Overload Shots . | . . . Overflow Damage . | . . . Projectiles . | . . . Explosions . | . . . Melee . | . . . Knockbacks . | . . . Impact . | . . . Kinetic . | . . . Secondary . | . . . Self-Inflicted Damage . | . . . Shots . | . . . Rammed . | . . . Targets Rammed . | . . . Kicked . | . . . Crushed . | . . . Highest Temperature 147 | . 147 . Average Temperature 53 | . 53 . Received Heat Transfer 258 | . 174 84 Siege Activations . | . . . Martial Activations . | . . . Shielding Activations . | . . . Robots Disrupted . | . . . Combat Hostiles . | . . . Robots Corrupted . | . . . Combat Hostiles . | . . . Parts Fried . | . . . Impact Corruptions . | . . . Robots Melted . | . . . Combat Hostiles . | . . . Parts Melted 3 | . 2 1 Heat Transferred 325 | . 325 . Parts Sabotaged . | . . . Parts Stolen . | . . . Parts Stripped . | . . . Power Chain Reactions . | . . . Alert | -11 -10 -10 ------- Run | Yrd Mat Sub Maximum Alert Level . | . . . Low Security (%) 100 | 100 100 . Level 1 . | . . . Level 2 . | . . . Level 3 . | . . . Level 4 . | . . . Level 5 . | . . . High Security . | . . . Max Security . | . . . Peak Influence 148 | . 148 . Initial . | . . . Average 42 | . 45 . Influence Increases 339 | . 339 . Destroy 0b10 Robot/C 240 | . 240 . Destroy 0b10 Robot/NC 35 | . 35 . Destroy Leader 58 | . 58 . Successful Hack 6 | . 6 . Influence Decreases 339 | . 241 98 Entered New Map 48 | . . 48 Time Decay 291 | . 241 50 Squads Dispatched 1 | . 1 . Investigation . | . . . Extermination . | . . . Reinforcement 1 | . 1 . Assault . | . . . Garrison . | . . . Intercept . | . . . Searches Triggered . | . . . Construction Impeded . | . . . Haulers Reinforced . | . . . Active Scanning Responses . | . . . Cargo Convoy Interrupts . | . . . Stealth | -11 -10 -10 --------- Run | Yrd Mat Sub Distress Signals . | . . . Communications Jammed . | . . . Distress Signals . | . . . Times Spotted 27 | . 22 5 Peak Tracking Total 6 | . 6 2 Tactical Retreats . | . . . Traps | -11 -10 -10 ------- Run | Yrd Mat Sub Traps Triggered 1 | . 1 . Indirectly . | . . . Trap Hack Attempts . | . . . Triggered . | . . . Disarmed . | . . . Reprogrammed . | . . . Reused . | . . . Traps Extracted . | . . . Installed . | . . . Triggered . | . . . Machines | -11 -10 -10 ---------- Run | Yrd Mat Sub Machines Disabled . | . . . Max in Single Turn . | . . . Machines Repaired . | . . . Machines Dismantled . | . . . Machines Sabotaged . | . . . Overloaded Fab Kills . | . . . Hacking | -11 -10 -10 --------- Run | Yrd Mat Sub Machines Accessed 3 | . 3 . Terminals 3 | . 3 . Fabricators . | . . . Repair Stations . | . . . Recycling Units . | . . . Scanalyzers . | . . . Garrison Access . | . . . Total Hacks 14 | . 14 . Successful 2 | . 2 . Failed 11 | . 11 . Catastrophic . | . . . Database Lockouts 1 | . 1 . Manual 14 | . 14 . Terminals 14 | . 14 . Fabricators . | . . . Repair Stations . | . . . Recycling Units . | . . . Scanalyzers . | . . . Garrison Access . | . . . Terminal Hacks 1 | . 1 . Robot Analysis 1 | . 1 . Fabricator Hacks . | . . . Repair Station Hacks . | . . . Recycling Unit Hacks . | . . . Scanalyzer . | . . . Garrison Access Hacks . | . . . Unauthorized Hacks 1 | . 1 . Terminals 1 | . 1 . Operators 1 | . 1 . Fabricators . | . . . Repair Stations . | . . . Recycling Units . | . . . Scanalyzers . | . . . Garrison Access . | . . . Data Cores Recovered . | . . . Used . | . . . Hacking Detections 2 | . 2 . Full Trace Events . | . . . Feedback Events . | . . . Feedback Blocked . | . . . Robot Schematics Acquired . | . . . Robots Built . | . . . Authchips . | . . . Time . | . . . Total Robot Build Rating . | . . . Part Schematics Acquired . | . . . Parts Built . | . . . Authchips . | . . . Time . | . . . Total Part Build Rating . | . . . Part Studies Acquired . | . . . Parts Repaired . | . . . Time . | . . . Parts Recycled . | . . . Recycled Matter . | . . . Retrieved Matter . | . . . Retrieved Components . | . . . Parts Scanalyzed . | . . . Part Schematics Acquired . | . . . Parts Damaged . | . . . Bothacking | -11 -10 -10 ------------ Run | Yrd Mat Sub Used RIF Installer . | . . . Robots Hacked . | . . . Non-combat . | . . . Combat . | . . . Robot Hacks Applied . | . . . Relay Couplers Released . | . . . Fabnet Peak Effective % . | . . . Robots Rewired . | . . . Allies Hacked . | . . . Hacks Repelled . | . . . Allies | -11 -10 -10 -------- Run | Yrd Mat Sub Total Allies . | . . . Largest Group . | . . . Highest-Rated Group . | . . . Highest-Rated Ally . | . . . Total Orders . | . . . Ally Attacks . | . . . Total Damage . | . . . Kills . | . . . Allies Corrupted . | . . . Allies Melted . | . . . Intel | -11 -10 -10 ------- Run | Yrd Mat Sub Active Infowar (turns) . | . . . Robot Analysis Total 1 | . 1 . Derelict Logs Recovered . | . . . Drone Launches . | . . . Drone Recoveries . | . . . Exploration | -11 -10 -10 ------------- Run | Yrd Mat Sub Turns Passed 1564 | 65 1018 481 Spaces Moved 547 | 41 368 138 Core 10 | 10 . . Treads 536 | 30 368 138 Legs . | . . . Wheels 1 | 1 . . Hover . | . . . Flight . | . . . Fastest Speed 50 | 50 160 240 Average Speed 214 | 131 214 240 Slowest Speed 240 | 160 240 240 Overloaded Moves . | . . . Propulsion Burnouts . | . . . Robots Hopped . | . . . Potential Cave-ins . | . . . Cave-ins Triggered . | . . . Exploration Rate (%) 26 | 4 65 10 Regions Visited 2 Branch Regions 1 Pre-discovered Areas . | . . . Known Exits Taken . | . . . Unknown Exits Taken 2 | 1 1 . Scrap Searched . | . . . Spaces Dug . | . . . Terrain Destroyed . | . . . Melee . | . . . Projectile . | . . . AOE . | . . . Terrain Rammed . | . . . Walls Destroyed . | . . . Machines Disabled . | . . . Actions | -11 -10 -10 --------- Run | Yrd Mat Sub Total 794 | 50 494 250 Wait 115 | 2 42 71 Move 545 | 40 367 138 Hop . | . . . Pick Up 20 | 1 11 8 Fast Attach 12 | 6 6 . Attach 6 | . 1 5 Detach . | . . . Swap 5 | . 3 2 Drop 5 | 1 4 . Fire 86 | . 60 26 Melee . | . . . Ram . | . . . Kick . | . . . Crush . | . . . Escape Stasis . | . . . Rewire . | . . . Trap . | . . . Miscellaneous . | . . . Route ------- -11/Scrapyard -10/Materials (discovered 4 exits: [*Mat x2] / [*Min] / [*Sub]) -10/Subcaves History --------- Turn | Location | Event 39 | -11/Scrapyard | Discovered new exit (range 16) 66 | -11/Scrapyard | Entered Materials 311 | -10/Materials | Build established: Mutant 539 | -10/Materials | Discovered new exit (range 7) 721 | -10/Materials | Discovered new exit (range 10) 828 | -10/Materials | Discovered new exit (range 6) 1008 | -10/Materials | Central database locked down 1062 | -10/Materials | Discovered new exit (range 9) 1084 | -10/Materials | Entered Subcaves 1085 | -10/Subcaves | Approached by a straggling Scientist 1276 | -10/Subcaves | Core integrity fell below 50% 1562 | -10/Subcaves | Core integrity fell below 20% 1565 | -10/Subcaves | Destroyed by 6Z-0V1(R) with Subdweller Shrapnel Launcher Last Messages --------------- 01361_ Subatomizers dissect the Lgt. Ion Engine. 01425_ Acquired 10 matter. 01488_ 5Y-DWV(O) puts together Mak. Light Armor Plating. 01507_ Subatomizers dissect the Wheel. 01512_ Lgt. Assault Rifle destroyed. 01519_ Subatomizers dissect the Wheel, destroying it. 01527_ Acquired Mak. Light Armor Plating. 01547_ PJ-5YZ(R) suffers critical hit (Destroy). 01549_ PJ-5YZ(R) destroyed. 01554_ Subatomizers dissect the Disposable Heat Sink. 01554_ Acquired 32 matter. 01558_ Acquired 2 matter. 01561_ Lgt. Assault Rifle destroyed. 01563_ Sub. Laser destroyed. 01564_ Subatomizers dissect the Sub. Monowheel, destroying it. Map ----- +----------------------------------------------------+ | ??????????????????????####????## ###??????????? | | ?????????????????????## ###### ### ##????????? | | ?????????????????????# ## ##?# ##??????? | | ?????????????????????# #?## "#??????? | | ?????????????????????# #######?# """"#??????? | | ?????????????????????## ##???????# """"##?????? | | ??????????????????????# ######????# """ "##????? | | ??????????????????????# ## "####?##"""" #????? | | ??????????????????????# " " ##?###"" ##????? | | ?????????????????????## """ #???##" ##????? | | ????????????????????## #??????#%" ##???? | | ??????????????????### ####??????# "" ##??? | | ?????????????????## ##????????## " #??? | | ?????????????????# #?????????# % #??? | | ????????????????# ## #?????????# ##??? | | ??????????????? ??# & ####??????## #???? | | ?????????????? ?### & ! #???????# ##???? | | ???????????? ??# #???????# ##???? | | ???????????? ???## & &####????# ##??? | | ??????????????????## #### ##???# #??? | | ???????????????????## ### % #??## #??? | | ????????????????????## ### #### #??? | | ?????????????????####;; ;; % % ###??? | | ???????????????# # % % #????? | | ???????????????#R [ ! ####????? | | ??????????# R &@ ## #???????? | | ??????????# ## ; ## #???????? | | ??????????????????####;; ## ##???????? | | ????????????????????# ;; ### #????????? | | ???????????????????# ## ##?## #????????? | | ???????????????????# ######???## ##????????? | | ???????????????????# #??????????#####?????????? | | ??????????????????? #?????????????????????????? | | ?????????????????? #??????????????????????????? | | ????????????????? #???????????????????????????? | | ???????????????? #????????????????????????????? | | ??????????????? ##?????????????????????????????? | | ???????????????? ???????????????????????????????? | | ?????????????????????????????????????????????????? | | ?????????????????????????????????????????????????? | | ?????????????????????????????????????????????????? | | ?????????????????????????????????????????????????? | | ?????????????????????????????????????????????????? | | ?????????????????????????????????????????????????? | | ?????????????????????????????????????????????????? | | ?????????????????????????????????????????????????? | | ?????????????????????????????????????????????????? | | ?????????????????????????????????????????????????? | | ?????????????????????????????????????????????????? | | ?????????????????????????????????????????????????? | +----------------------------------------------------+ Best States ------------- Heat Dissipation 25 Energy Generation 10 Energy Capacity 125 Matter Stores 300 Matter Capacity 300 Sight Range 16 Terrain Scan Density 10 Core Shielding 20 Evasion (%) 50 Recoil Reduction 2 Item Schematics ----------------- None Robot Schematics ------------------ None Fabricated ------------ Nothing Repaired ---------- Nothing Studied --------- None Alien Tech Used ----------------- None Achievements -------------- None Challenges ------------ None Game ------ Seed IntegratedSubdwellerDirector Manual? 0 Play Time 00:07:12 Cumulative 482.9 hours Start 2025.10.25 @ 20:52:34 End 2025.10.25 @ 21:01:25 Sessions 1 Manual Loads 0 Difficulty Rogue Special Mode None Game No. 814 Rogue 659 Adventurer 148 Explorer 7 Win Type - Total 24 Types 19/1/3/1/0/0/0/0/0/0 Lore% 69 Gallery% 76 Achievement% 54 Wizard Run 0 Options --------- Layout 1 ASCII 0 Keyboard 0 Movement Numpad Keybinds 0 Fullscreen 2 Font 24/Smallcaps Map View 50x40 Zoom Use 0% Tactical HUD 1 Map Filters NONE Filters NONE Steam 1 RUN: 976c14bb-a895-4acd-8eaa-0bc56932bfda